[Event "Orbis GM 2018"]
[Site "Paracin"]
[Date "2018.07.15"]
[Round "2"]
[White "Raghunandan, Kaumandur Srihari"]
[Black "Savic, Miodrag R"]
[Result "1/2-1/2"]
[ECO "B01"]
[WhiteElo "2417"]
[BlackElo "2541"]
[Annotator "ChessBase"]
[PlyCount "81"]
[EventDate "2018.??.??"]
[EventCountry "SRB"]
[SourceTitle "playchess.com"]
[Source "ChessBase"]
[SourceQuality "1"]
[TimeControl "40/5400+30:1800+30"]

1. e4 {[%emt 0:00:00]} d5 {[%emt 0:00:00]} 2. exd5 {[%emt 0:00:00]} Qxd5 {[%emt 0:00:00]} 3. Nc3 {[%emt 0:00:00]} Qd8 {[%emt 0:00:12]} 4. d4 {[%emt 0:00:41]} Nf6 {[%emt 0:00:20]} 5. Nf3 {[%emt 0:03:53]} Bf5 {[%emt 0:03:12]} 6. Ne5 {[%emt 0:03:55]} Be6 {[%emt 0:36:47]} 7. Bd3 {[%emt 0:19:29]} c6 {[%emt 0:00:47]} 8. Ne2 {[%emt 0:00:08]} Nbd7 {[%emt 0:10:50]} 9. O-O {[%emt 0:01:48]} Nd5 {[%emt 0:03:23]} 10. Nf4 {[%emt 0:17:39]} Nxf4 {[%emt 0:01:11]} 11. Bxf4 {[%emt 0:00:08]} g6 {[%emt 0:03:52]} 12. Nxd7 {[%emt 0:01:42]} Qxd7 {[%emt 0:00:18]} 13. Be5 {[%emt 0:00:12]} f6 {[%emt 0:04:26]} 14. Bg3 {[%emt 0:01:29]} Bf7 {[%emt 0:05:12]} 15. c3 {[%emt 0:00:37]} Bg7 {[%emt 0:00:25]} 16. Qc2 {[%emt 0:06:05]} O-O {[%emt 0:00:11]} 17. Rfe1 {[%emt 0:01:10]} Rfe8 {[%emt 0:01:13]} 18. Rad1 {[%emt 0:04:52]} Rad8 {[%emt 0:00:02]} 19. h4 {[%emt 0:00:38]} Qd5 {[%emt 0:03:47]} 20. Be4 {[%emt 0:02:36]} Qa5 {[%emt 0:02:52]} 21. a4 {[%emt 0:02:40]} Bd5 {[%emt 0:04:42]} 22. Bd3 {[%emt 0:06:16]} Bf7 {[%emt 0:00:02]} 23. b4 {[%emt 0:01:24]} Qd5 {[%emt 0:00:13]} 24. b5 {[%emt 0:08:52]} Qb3 {[%emt 0:00:40]} 25. bxc6 {[%emt 0:04:49]} bxc6 {[%emt 0:00:04]} 26. Rb1 {[%emt 0:00:34]} Qxc2 {[%emt 0:00:14]} 27. Bxc2 {[%emt 0:00:06]} c5 {[%emt 0:06:17]} 28. dxc5 {[%emt 0:01:01]} Rc8 {[%emt 0:00:04]} 29. Bd3 {[%emt 0:06:18]} e5 {[%emt 0:02:50]} 30. Bb5 {[%emt 0:00:53]} Re7 {[%emt 0:00:31]} 31. c6 {[%emt 0:03:25]} Bd5 {[%emt 0:00:03]} 32. f4 {[%emt 0:01:20]} Bxc6 {[%emt 0:03:25]} 33. fxe5 {[%emt 0:00:08]} Bxb5 {[%emt 0:00:45]} 34. Rxb5 {[%emt 0:00:18]} fxe5 {[%emt 0:00:02]} 35. Re3 {[%emt 0:01:15]} e4 {[%emt 0:01:12]} 36. Rb8 {[%emt 0:00:43]} Rxb8 {[%emt 0:00:37]} 37. Bxb8 {[%emt 0:00:06]} a6 {[%emt 0:02:25]} 38. Bf4 {[%emt 0:00:34]} Kf7 {[%emt 0:00:15]} 39. Kf1 {[%emt 0:00:32]} Re6 {[%emt 0:03:33]} 40. Ke2 {[%emt 0:00:00]} Bf6 {[%emt 0:00:00]} 41. g3 {[%emt 0:00:47]} 1/2-1/2

[Event "Orbis GM 2018"]
[Site "Paracin"]
[Date "2018.07.17"]
[Round "5"]
[White "Ikeda, Junta"]
[Black "Raghunandan, Kaumandur Srihari"]
[Result "0-1"]
[ECO "A04"]
[WhiteElo "2437"]
[BlackElo "2417"]
[Annotator "RC"]
[PlyCount "82"]
[EventDate "2018.??.??"]
[EventCountry "SRB"]
[SourceTitle "playchess.com"]
[Source "ChessBase"]
[SourceQuality "1"]
[TimeControl "40/5400+30:1800+30"]

1. Nf3 {[%emt 0:00:00]} g6 {[%emt 0:00:00]} 2. d4 {[%emt 0:00:00]} Bg7 {[%emt 0:00:05]} 3. g3 {[%emt 0:00:00]} c5 {[%emt 0:00:50]} 4. d5 {[%emt 0:01:26]} Nf6 {[%emt 0:00:28]} 5. Bg2 {[%emt 0:01:13]} O-O {[%emt 0:00:47]} 6. O-O {[%emt 0:01:53]} b5 {[%emt 0:03:19]} 7. Nfd2 {[%emt 0:06:09]} d6 {[%emt 0:03:28]} 8. a4 {[%emt 0:02:07]} b4 {[%emt 0:00:17]} 9. e4 {[%emt 0:02:06]} Nbd7 {[%emt 0:03:00]} 10. Re1 {[%emt 0:05:32]} Ba6 {[%emt 0:08:37]} 11. Bf1 {[%emt 0:05:24]} Bxf1 {[%emt 0:10:38]} 12. Nxf1 {[%emt 0:01:32]} c4 {[%emt 0:03:16]} 13. Nbd2 {[%emt 0:03:46]} Qc7 {[%emt 0:01:30]} 14. Qe2 {[%emt 0:09:10]} Rfc8 {[%emt 0:09:45]} 15. Ra2 {[%emt 0:07:39]} c3 {[%emt 0:25:03]} 16. bxc3 {[%emt 0:02:00]} Qxc3 {[%emt 0:00:36]} 17. a5 {[%emt 0:10:17]} Nc5 {[%emt 0:10:05]} 18. f3 {[%emt 0:13:58]} b3 {[%emt 0:01:45]} 19. Nxb3 {[%emt 0:00:18]} Nxb3 {[%emt 0:00:23]} 20. cxb3 {[%emt 0:00:05]} Qxb3 {[%emt 0:00:16]} 21. Rb2 {[%emt 0:02:57]} Qa3 {[%emt 0:05:51]} 22. Ra2 {[%emt 0:06:10]} Qb3 {[%emt 0:00:30]} 23. Rb2 {[%emt 0:02:38]} Qa3 {[%emt 0:03:59]} 24. Ra2 {[%emt 0:01:31]} Qb4 {[%emt 0:00:06]} 25. Be3 {[%emt 0:00:46]} Nd7 {[%emt 0:00:19]} 26. Nd2 {[%emt 0:00:48]} Ne5 {[%emt 0:02:29]} 27. Rb1 {[%emt 0:02:41]} Qc3 {[%emt 0:00:14]} 28. Rb7 {[%emt 0:02:53]} Rab8 {[%emt 0:04:21]} 29. Rxb8 {[%emt 0:05:36]} Rxb8 {[%emt 0:00:05]} 30. Bxa7 {[%emt 0:00:26]} Ra8 {[%emt 0:00:57]} 31. Bb6 {[%emt 0:00:59]} Nd3 {[%emt 0:01:23]} 32. Nb1 {[%emt 0:02:25]} Qc1+ {[%emt 0:00:16]} 33. Qf1 {[%emt 0:00:25]} Ne1 {[%emt 0:00:23]} 34. Nd2 {[%emt 0:00:51]} Bc3 {[%emt 0:00:12]} 35. Nc4 {[%emt 0:01:14]} Nxf3+ {[%emt 0:00:34]} 36. Kf2 {[%emt 0:00:32]} Ne1 {[%emt 0:00:32]} 37. Qe2 {[%emt 0:00:26]} Qb1 {[%emt 0:00:58]} 38. Na3 {[%emt 0:00:30]} Qb3 {[%emt 0:00:38]} 39. Nb5 {[%emt 0:00:35]} Nd3+ {[%emt 0:00:34]} 40. Qxd3 {[%emt 0:00:00]} Qxa2+ {[%emt 0:00:00]} 41. Qe2 {[%emt 0:04:33]} Bxa5 {[%emt 0:00:39]} 0-1

[Event "Orbis GM 2018"]
[Site "Paracin"]
[Date "2018.07.18"]
[Round "7"]
[White "Savic, Miodrag R"]
[Black "Atalik, Suat"]
[Result "1/2-1/2"]
[ECO "C42"]
[WhiteElo "2541"]
[BlackElo "2509"]
[Annotator "ChessBase"]
[PlyCount "23"]
[EventDate "2018.??.??"]
[EventCountry "SRB"]
[SourceTitle "playchess.com"]
[Source "ChessBase"]
[SourceQuality "1"]
[TimeControl "40/5400+30:1800+30"]

1. e4 {[%emt 0:00:00]} e5 {[%emt 0:00:00]} 2. Nf3 {[%emt 0:00:01]} Nf6 {[%emt 0:00:01]} 3. Nxe5 {[%emt 0:00:22]} d6 {[%emt 0:00:10]} 4. Nf3 {[%emt 0:00:11]} Nxe4 {[%emt 0:00:10]} 5. Qe2 {[%emt 0:00:16]} Qe7 {[%emt 0:00:08]} 6. d3 {[%emt 0:00:19]} Nf6 {[%emt 0:00:07]} 7. Nc3 {[%emt 0:00:43]} Qxe2+ {[%emt 0:00:10]} 8. Bxe2 {[%emt 0:00:11]} g6 {[%emt 0:00:06]} 9. Nb5 {[%emt 0:01:40]} Na6 {[%emt 0:00:17]} 10. c3 {[%emt 0:00:27]} c6 {[%emt 0:01:15]} 11. Na3 {[%emt 0:00:20]} d5 {[%emt 0:00:09]} 12. Nc2 {[%emt 0:00:14]} 1/2-1/2

[Event "Orbis GM 2018"]
[Site "Paracin"]
[Date "2018.07.18"]
[Round "7"]
[White "Peng, Shunkai"]
[Black "Raja, Rithvik R"]
[Result "1/2-1/2"]
[ECO "B51"]
[WhiteElo "2390"]
[BlackElo "2343"]
[Annotator "NA"]
[PlyCount "76"]
[EventDate "2018.??.??"]
[EventCountry "SRB"]
[SourceTitle "playchess.com"]
[Source "ChessBase"]
[SourceQuality "1"]
[TimeControl "40/5400+30:1800+30"]

1. e4 {[%emt 0:00:58]} c5 {[%emt 0:00:00]} 2. Nf3 {[%emt 0:01:13]} d6 {[%emt 0:00:00]} 3. Bb5+ {[%emt 0:01:36]} Nd7 {[%emt 0:00:00]} 4. c3 {[%emt 0:00:58]} Ngf6 {[%emt 0:00:00]} 5. Qe2 {[%emt 0:00:42]} a6 {[%emt 0:00:01]} 6. Bd3 {[%emt 0:01:07]} Ne5 {[%emt 0:03:14]} 7. Nxe5 {[%emt 0:03:12]} dxe5 {[%emt 0:00:36]} 8. a4 {[%emt 0:01:43]} e6 {[%emt 0:02:10]} 9. Na3 {[%emt 0:02:47]} b6 {[%emt 0:01:09]} 10. Bc2 {[%emt 0:13:18]} Be7 {[%emt 0:02:16]} 11. O-O {[%emt 0:04:04]} Bb7 {[%emt 0:06:07]} 12. Nc4 {[%emt 0:05:37]} Nd7 {[%emt 0:01:04]} 13. Qg4 {[%emt 0:19:07]} O-O {[%emt 0:09:18]} 14. Qg3 {[%emt 0:06:39]} b5 {[%emt 0:08:35]} 15. axb5 {[%emt 0:09:27]} axb5 {[%emt 0:00:19]} 16. Rxa8 {[%emt 0:00:06]} Bxa8 {[%emt 0:00:03]} 17. Na3 {[%emt 0:00:34]} Bc6 {[%emt 0:02:06]} 18. d3 $11 {[%emt 0:00:18]} Bh4 {[%emt 0:05:58]} 19. Qh3 {[%emt 0:03:37]} Bg5 {[%emt 0:01:02]} 20. Be3 {[%emt 0:00:29]} h6 {[%emt 0:12:23]} 21. Nb1 {[%emt 0:07:10]} Bxe3 {[%emt 0:04:29]} 22. Qxe3 {[%emt 0:02:31]} Qg5 {[%emt 0:01:10]} 23. Qxg5 {[%emt 0:05:34]} hxg5 {[%emt 0:00:11]} 24. Nd2 {[%emt 0:00:05]} Ra8 {[%emt 0:00:23]} 25. h3 {[%emt 0:00:31]} Kf8 {[%emt 0:01:10]} 26. Rd1 {[%emt 0:01:51]} Ra2 {[%emt 0:03:25]} 27. Rb1 {[%emt 0:00:14]} Ke7 {[%emt 0:00:46]} 28. Kf1 {[%emt 0:00:15]} Nb6 {[%emt 0:03:51]} 29. Bb3 {[%emt 0:00:35]} Ra8 {[%emt 0:00:38]} 30. Ke2 {[%emt 0:00:05]} f5 {[%emt 0:01:30]} 31. Bc2 {[%emt 0:01:19]} Kf6 {[%emt 0:03:17]} 32. f3 {[%emt 0:00:32]} Ra2 {[%emt 0:06:50]} 33. Bb3 {[%emt 0:00:37]} Ra8 {[%emt 0:00:51]} 34. Bc2 {[%emt 0:00:33]} b4 {[%emt 0:04:05]} 35. Bb3 {[%emt 0:01:12]} Bb5 {[%emt 0:00:59]} 36. Rc1 {[%emt 0:02:32]} Rd8 {[%emt 0:02:58]} 37. cxb4 {[%emt 0:03:12]} Bxd3+ {[%emt 0:01:20]} 38. Ke1 {[%emt 0:00:06]} c4 {[%emt 0:01:35]} 1/2-1/2